bitfinex/quotes_ETHUSD_20250923
["timestamp","ask_amount","ask_price","bid_price","bid_amount"]
[1758654248192,7.116,4175.0,4174.9,0.6783]
[1758654248363,3.0,4175.0,4174.9,3.07356695]
[1758654248768,4.49086521,4175.7,4174.9,3.07356695]
[1758654248769,0.48814134,4175.9,4175.0,2.39520958]
[1758654248968,0.1573622,4175.8,4175.6,2.39481764]
[1758654249191,2.557,4176.0,4175.7,0.6743]
[1758654249418,0.02405423,4175.9,4175.8,0.6743]
[1758654249716,0.24633582,4175.9,4175.8,0.6743]
[1758654250507,0.37980121,4175.9,4175.8,0.4406]
[1758654250980,0.24633582,4175.9,4175.8,0.4406]
[1758654251175,0.3798005,4175.9,4175.8,0.4406]
[1758654251379,0.3798005,4175.9,4175.5,0.4354]
[1758654251610,0.22228159,4175.8,4175.6,0.6671]
[1758654251795,0.15751891,4175.9,4175.6,0.6671]
[1758654251796,0.24633582,4175.7,4175.6,0.6671]
[1758654251967,0.24633582,4175.7,4175.6,3.0619654]
[1758654252170,0.24633582,4175.7,4175.6,0.6671]
[1758654252608,0.3798005,4175.7,4175.6,0.6671]
[1758654252803,0.24633582,4175.7,4175.6,0.6671]
[1758654253178,0.3798005,4175.7,4175.6,0.6671]
[1758654253372,0.38083421,4175.7,4175.6,0.6671]
[1758654253804,0.38083421,4175.7,4175.2,2.39507851]
[1758654253980,0.35677998,4175.6,4175.3,0.6671]
[1758654254176,0.35679649,4175.5,4175.4,3.06208012]
[1758654254378,0.35686562,4175.5,4175.4,3.08602992]
[1758654254599,0.22298749,4175.5,4175.4,3.08602992]
[1758654254971,4.108,4176.1,4175.9,2.39467593]
[1758654255177,0.35698139,4176.0,4175.9,2.39467593]
[1758654255389,0.35698139,4176.0,4175.9,2.51387593]
[1758654255636,0.35698139,4176.0,4175.9,0.1192]
[1758654255788,0.35698139,4176.0,4175.9,0.3448]
[1758654255985,0.35698139,4176.0,4175.9,0.7863]
[1758654256393,0.35698139,4176.0,4175.3,0.2256]
[1758654256589,2.3949159,4175.6,4175.2,0.4415]
[1758654256897,2.3949159,4175.6,4174.9,0.004]
[1758654256898,2.39520958,4175.0,4174.9,0.004]
[1758654257092,11.9572452,4175.0,4174.9,0.004]
[1758654257307,13.12987351,4175.0,4174.9,0.004]
[1758654257517,13.92187351,4175.0,4174.9,0.004]
[1758654257738,15.617881,4175.0,4174.9,0.004]
[1758654258030,16.26094885,4175.0,4174.9,0.004]
[1758654258192,15.617881,4175.0,4174.9,0.004]
[1758654258388,16.47421567,4175.0,4174.9,0.004]
[1758654258591,15.617881,4175.0,4174.9,0.004]
[1758654258794,16.47879856,4175.0,4174.9,0.004]
[1758654259405,15.619881,4175.0,4174.9,0.004]
[1758654260794,9.436881,4175.0,4174.9,0.004]
[1758654261408,15.402581,4175.0,4174.9,0.004]
[1758654261993,15.616881,4175.0,4174.9,0.004]
[1758654263620,15.402581,4175.0,4174.9,0.004]
[1758654264329,15.616881,4175.0,4174.9,0.004]
[1758654264525,13.542881,4175.0,4174.9,0.004]
[1758654264826,15.614881,4175.0,4174.9,0.004]
[1758654265725,8.754781,4175.0,4174.9,0.004]
[1758654265925,14.931781,4175.0,4174.9,0.004]
[1758654266629,14.93207035,4175.0,4174.9,0.004]
[1758654269099,14.92707035,4175.0,4174.9,0.004]
[1758654269411,8.75507035,4175.0,4174.9,0.004]
[1758654269613,14.92607035,4175.0,4174.9,0.004]
[1758654271102,8.75507035,4175.0,4174.9,0.004]
[1758654271406,14.92507035,4175.0,4174.9,0.004]
[1758654271807,22.11507035,4175.0,4174.9,0.004]
[1758654272721,22.11207035,4175.0,4174.9,0.004]
[1758654275938,15.94507035,4175.0,4174.9,0.004]
[1758654276139,22.10807035,4175.0,4174.9,0.004]
[1758654277966,6.35986077,4175.0,4174.9,0.004]
[1758654278265,0.64367134,4175.5,4174.9,0.6711]
[1758654278454,0.1192,4175.6,4175.0,3.20545846]
[1758654278764,0.02405423,4175.7,4174.9,0.004]
[1758654278765,0.02405423,4175.5,4175.1,0.6671]
[1758654279062,0.1192,4175.2,4175.0,2.39520862]
[1758654279264,0.02405423,4175.1,4174.9,0.004]
[1758654279436,6.51721875,4175.1,4174.9,0.004]
[1758654279762,4.098,4175.1,4174.9,0.004]
[1758654279969,4.12205423,4175.1,4174.9,0.6711]
[1758654280339,6.51720683,4175.1,4174.9,0.6711]
[1758654280535,4.098,4175.1,4174.9,0.6711]
[1758654280763,4.12205423,4175.1,4174.9,0.6711]
[1758654281472,2.39520958,4175.0,4174.9,0.4455]
[1758654281681,6.49316494,4175.1,4174.9,0.004]
[1758654282367,3.18720958,4175.0,4174.9,0.004]
[1758654282772,3.21126381,4175.0,4174.9,0.004]
[1758654283076,4.12105423,4175.0,4174.9,0.6658]
[1758654283868,6.51626381,4175.0,4174.9,0.6658]
[1758654284074,4.097,4175.0,4174.9,0.6658]
[1758654284369,4.12105423,4175.0,4174.9,0.6658]
[1758654284759,0.02405423,4175.0,4174.9,0.6658]
[1758654284963,0.1192,4175.0,4174.9,0.6658]
[1758654285146,0.02405423,4175.4,4174.9,0.6658]
[1758654285147,2.419,4175.2,4175.0,2.39520958]
[1758654285341,0.1192,4175.6,4175.4,2.39496182]
[1758654285541,0.1192,4175.6,4175.5,2.39492276]
[1758654285742,0.14425423,4176.0,4175.6,2.39482835]
[1758654285942,0.14425423,4176.0,4175.4,0.1192]
[1758654285943,2.539,4175.9,4175.5,2.39491874]
[1758654286174,0.02405423,4175.8,4175.6,0.6618]
[1758654286478,0.02405423,4175.8,4175.7,0.6618]
[1758654287778,0.02405423,4175.8,4175.7,0.4282]
[1758654287954,0.02405423,4175.8,4175.7,0.2336]
[1758654288144,0.02405423,4175.8,4175.7,0.6618]
[1758654289176,0.02405423,4175.8,4175.7,3.05660805]
[1758654289576,0.02405423,4175.8,4175.7,0.6618]
[1758654289756,0.02405423,4175.8,4175.7,3.05660805]
[1758654290082,0.001,4176.0,4175.9,2.39469335]
[1758654290378,0.35901097,4176.0,4175.8,0.6618]
[1758654290544,0.13425411,4175.9,4175.8,2.3947507]
[1758654291156,0.13425411,4175.9,4175.8,3.0565507]
[1758654291581,0.13425411,4175.9,4175.8,0.6618]
[1758654291759,0.35783385,4175.9,4175.8,0.6618]
[1758654291956,0.35783385,4175.9,4175.8,3.0565507]
[1758654292357,0.13425411,4175.9,4175.8,0.6618]
[1758654292556,0.35783385,4175.9,4175.8,0.6618]
[1758654293461,0.02505423,4176.0,4175.8,0.6618]
[1758654293783,0.02505423,4176.0,4175.9,0.6618]
[1758654293979,0.02505423,4176.0,4175.4,0.1192]
[1758654294286,0.02505423,4176.0,4175.5,2.39490954]
[1758654294847,0.35759544,4175.9,4175.4,0.1192]
[1758654295053,0.1192,4175.4,4174.9,0.2376]
[1758654295373,0.81859544,4175.9,4174.9,0.004]
[1758654295374,0.02405423,4175.3,4174.9,0.004]
[1758654295577,2.39515221,4175.1,4174.9,0.004]
[1758654295886,4.7653,4175.2,4174.9,0.004]
[1758654295887,2.41926381,4175.0,4174.9,0.004]
[1758654296086,3.34492019,4175.0,4174.9,0.004]
[1758654296472,3.56848294,4175.0,4174.9,0.004]
[1758654297460,3.92618819,4175.0,4174.9,0.004]
[1758654298008,4.44137772,4175.0,4174.9,0.004]
[1758654298193,4.44142895,4175.0,4174.9,0.004]
[1758654299210,4.44151944,4175.0,4174.9,0.004]
[1758654300209,5.23351944,4175.0,4174.9,0.004]
[1758654300407,8.88476521,4175.0,4174.9,0.004]
[1758654300569,7.41746521,4175.0,4174.9,0.004]
[1758654300769,13.57946521,4175.0,4174.9,0.004]
[1758654301375,11.18425563,4175.0,4174.9,0.004]
[1758654301575,10.57946521,4175.0,4174.9,0.004]
[1758654301776,2.02225563,4175.0,4174.9,0.004]
[1758654301977,4.695402,4175.0,4174.9,0.6658]
[1758654302377,0.58134777,4175.0,4174.9,0.6658]
[1758654302686,0.58134777,4175.0,4174.9,0.004]
[1758654302687,4.67034777,4175.0,4174.9,0.004]
[1758654302864,7.06555735,4175.0,4174.9,0.004]
[1758654303065,7.58080883,4175.0,4174.9,0.004]
[1758654303580,5.18759925,4175.0,4174.9,0.6658]
[1758654303776,0.58134777,4175.0,4174.9,0.6658]
[1758654303981,4.67234777,4175.0,4174.9,3.06106695]
[1758654304187,4.67234777,4175.0,4174.9,0.6658]
[1758654304709,4.67234777,4175.0,4174.9,3.06106695]
[1758654304932,0.58134777,4175.0,4174.9,3.06106695]
[1758654305139,0.35772143,4175.0,4174.9,3.60711752]
[1758654307180,0.58165108,4175.0,4174.9,3.60711752]
[1758654307396,0.35772143,4175.0,4174.9,3.60711752]
[1758654308579,0.22356275,4175.0,4174.9,6.60711752]
[1758654310404,0.22356275,4175.0,4174.9,6.72631752]
[1758654311209,0.22356275,4175.0,4174.9,3.72631752]
[1758654312118,0.22356275,4175.0,4174.9,3.75027018]
[1758654313017,0.22356275,4175.0,4174.9,10.83327018]
[1758654313214,0.22356275,4175.0,4174.9,10.80931752]
[1758654314914,0.13436207,4175.5,4175.4,2.39498012]
[1758654315122,0.001,4175.6,4175.5,2.39492276]
[1758654315471,0.001,4175.6,4175.5,3.12187198]
[1758654318517,0.001,4175.6,4175.5,6.12187198]
[1758654318750,0.001,4175.6,4175.5,6.09792276]
[1758654318920,0.001,4175.6,4175.5,7.6067384]
[1758654321855,0.001,4175.6,4175.5,10.9787384]
[1758654322227,0.001,4175.6,4175.5,11.6817384]
[1758654324158,0.001,4175.6,4175.5,2.39492276]
[1758654324451,0.6671,4175.6,4175.5,2.39492276]
[1758654324756,0.4528,4175.6,4175.5,2.39492276]
[1758654324956,0.001,4175.6,4175.5,2.39492276]
[1758654325330,0.001,4175.6,4175.5,2.41887198]
[1758654326371,0.001,4175.6,4175.5,3.57380218]
[1758654326656,0.001,4175.6,4175.5,4.16480218]
[1758654327261,0.001,4175.6,4175.5,4.14085296]
[1758654327446,0.001,4175.6,4175.5,3.66905296]
[1758654328156,0.001,4175.6,4175.5,3.43785296]
[1758654330926,0.001,4175.6,4175.5,6.58512276]
[1758654331971,0.001,4175.6,4175.5,6.81632276]
[1758654332152,0.001,4176.1,4176.0,2.39463601]
[1758654332153,1e-08,4176.1,4176.0,2.39463601]
[1758654332338,1e-08,4176.1,4176.0,8.55958237]
[1758654332677,1e-08,4176.1,4176.0,9.23863601]
[1758654332838,1e-08,4176.1,4176.0,10.40197065]
[1758654333042,1e-08,4176.1,4176.0,13.40197065]
[1758654336272,1e-08,4176.1,4176.0,3.55797065]
[1758654336940,1e-08,4176.1,4175.6,0.703]
[1758654336941,1e-08,4176.1,4175.6,3.0]
[1758654337126,0.45180001,4176.1,4176.0,2.39463601]
[1758654337330,0.58609536,4176.1,4176.0,2.39463601]
[1758654337776,0.80039536,4176.1,4176.0,2.39463601]
[1758654338633,1.02428842,4176.1,4175.0,0.004]
[1758654338960,0.3822574,4176.0,4175.0,2.39920766]
[1758654339150,0.3822574,4176.0,4175.3,2.39499433]
[1758654339151,1.36859802,4175.9,4175.3,2.39499433]
[1758654339355,1.0483574,4175.8,4175.1,4.073]
[1758654339550,1.0483574,4175.8,4175.0,0.004]
[1758654339551,2.3948654,4175.6,4175.0,0.004]
[1758654339749,2.39498087,4175.4,4175.0,0.004]
[1758654339953,0.3822574,4175.3,4175.0,0.004]
[1758654340166,0.35820317,4175.2,4175.0,0.004]
[1758654340338,0.3822574,4175.1,4175.0,0.004]
[1758654340539,1.0483574,4175.1,4175.0,2.39920958]
[1758654340751,1.02430317,4175.1,4175.0,0.004]
[1758654341353,3.78785386,4175.1,4175.0,0.004]
[1758654341564,1.0483574,4175.1,4175.0,0.004]
[1758654341949,3.44350961,4175.1,4175.0,0.004]
[1758654342145,3.95916278,4175.1,4175.0,0.004]
[1758654343267,4.75116278,4175.1,4175.0,0.004]
[1758654343491,6.14564532,4175.1,4175.0,0.004]
[1758654343687,15.27459109,4175.1,4175.0,0.004]
[1758654343887,15.9191885,4175.1,4175.0,0.004]
[1758654344037,15.27459109,4175.1,4175.0,0.004]
[1758654344336,16.13276799,4175.1,4175.0,0.004]
[1758654345369,15.27459109,4175.1,4175.0,0.004]
[1758654347058,9.12159109,4175.1,4175.0,0.004]
[1758654347261,15.27359109,4175.1,4175.0,0.004]
[1758654347462,15.91622107,4175.1,4175.0,0.004]
[1758654347659,9.76422107,4175.1,4175.0,0.004]
[1758654347862,15.27359109,4175.1,4175.0,0.004]
[1758654348174,8.32959109,4175.1,4175.0,0.004]
[1758654348350,14.48159109,4175.1,4175.0,0.004]
[1758654348754,14.48002497,4175.1,4175.0,0.004]
[1758654349163,2.26677276,4175.1,4175.0,0.004]
[1758654349473,12.14314349,4175.1,4175.0,0.004]
[1758654349659,12.11908926,4175.1,4175.0,0.004]
[1758654349861,9.58058926,4175.1,4175.0,0.004]
[1758654350242,13.37258926,4175.1,4175.0,0.004]
[1758654350849,4.43663705,4175.1,4175.0,0.004]
[1758654351180,4.88766008,4175.1,4175.0,0.004]
[1758654351473,4.86360585,4175.1,4175.0,0.004]
[1758654352365,4.21274214,4175.1,4175.0,0.004]
[1758654352962,8.07569435,4175.1,4175.0,0.004]
[1758654353143,0.35653056,4175.1,4175.0,0.004]
[1758654353339,4.23979637,4175.1,4175.0,0.004]
[1758654354446,4.46258543,4175.1,4175.0,0.004]
[1758654354647,7.84350402,4175.1,4175.0,0.004]
[1758654354843,7.81944979,4175.1,4175.0,0.004]
[1758654355048,8.49524979,4175.1,4175.0,0.004]
[1758654355248,0.3565312,4175.1,4175.0,0.004]
[1758654355455,4.081,4175.3,4175.0,0.004]
[1758654355456,0.15779637,4175.2,4175.0,0.004]
[1758654355657,6.06869435,4175.1,4175.0,0.004]
[1758654355876,9.80486267,4175.1,4175.0,0.004]
[1758654357845,0.86991046,4175.1,4175.0,3.10490958]
[1758654358155,1e-08,4176.1,4175.9,2.39465026]
[1758654358354,1e-08,4176.1,4175.8,2.39473741]
[1758654358568,1e-08,4176.1,4175.7,0.7057]
[1758654358771,1e-08,4176.1,4176.0,2.39463601]
[1758654359160,1e-08,4176.1,4176.0,3.10033601]
[1758654360990,1e-08,4176.1,4176.0,3.64984115]
[1758654361757,1e-08,4176.1,4176.0,6.64984115]
[1758654362293,1e-08,4176.1,4176.0,7.44184115]
[1758654362972,1e-08,4176.1,4176.0,7.56104115]
[1758654364495,1e-08,4176.1,4176.0,12.83384115]
[1758654366481,1e-08,4176.1,4176.0,6.64984115]
[1758654366659,1e-08,4176.1,4176.0,10.76284115]
[1758654367159,1e-08,4176.1,4176.0,3.64984115]
[1758654367356,1e-08,4176.1,4176.0,7.28864115]
[1758654368214,1e-08,4176.1,4176.0,2.39463601]
[1758654368914,1e-08,4176.1,4176.0,28.81394557]
[1758654369715,1e-08,4176.1,4176.0,10.21633601]
[1758654374522,1e-08,4176.1,4176.0,10.33553601]
[1758654377001,1e-08,4176.1,4176.0,11.12753601]
[1758654377205,1e-08,4176.1,4176.0,12.47976286]
[1758654378948,1e-08,4176.1,4176.0,12.49196286]
[1758654379692,1e-08,4176.1,4176.0,11.69996286]
[1758654379897,1e-08,4176.1,4176.0,12.49196286]
[1758654381643,1e-08,4176.1,4176.0,13.16466286]
[1758654382115,1e-08,4176.1,4176.0,13.63876286]
[1758654383104,1e-08,4176.1,4176.0,7.46476286]
[1758654383323,1e-08,4176.1,4176.0,13.63776286]
[1758654383561,0.001,4176.6,4176.0,13.63776286]
[1758654383562,0.001,4176.6,4176.5,2.39434933]
[1758654383745,0.003,4179.1,4176.5,2.39434933]
[1758654383746,0.2143,4178.2,4177.5,2.39377618]
[1758654383956,0.4326,4178.1,4178.0,2.3934897]
[1758654384152,0.2143,4178.2,4178.0,6.4994897]
[1758654384319,0.2143,4178.4,4178.3,2.39331785]
[1758654384524,0.6469,4178.4,4178.3,2.39331785]
[1758654386256,0.78086916,4178.4,4178.3,2.39331785]
[1758654387262,1.00457578,4178.4,4178.3,2.39331785]
[1758654387650,1.00480485,4178.4,4178.3,2.39331785]
[1758654389260,1.00480485,4178.4,4178.2,4.106]
[1758654389463,0.4326,4178.4,4178.3,2.39331785]
[1758654389676,0.13429959,4178.4,4178.3,2.41725102]
[1758654389970,0.13429959,4178.4,4178.3,6.51625102]
[1758654390147,0.2173,4179.1,4179.0,2.39291696]
[1758654390347,1.09067035,4179.1,4179.0,6.49391696]
[1758654390552,1.52327035,4179.1,4179.0,6.49391696]
[1758654390747,1.00784352,4179.1,4179.0,6.49391696]
[1758654391376,0.36094352,4179.1,4179.0,6.49391696]
[1758654391562,0.36094352,4179.1,4179.0,6.61311696]
[1758654391872,0.14325423,4180.2,4179.8,2.39245896]
[1758654391873,0.5152806,4179.9,4179.8,2.39245896]
[1758654392072,0.5152806,4179.9,4179.8,6.49845896]
[1758654392275,0.003,4180.0,4179.9,2.39240173]
[1758654392851,0.003,4180.0,4179.9,2.63620173]
[1758654393052,0.003,4180.0,4179.9,2.66012574]
[1758654393471,0.004,4180.0,4179.9,2.66012574]
[1758654393675,0.004,4180.0,4179.9,2.63620173]
[1758654393992,0.004,4180.0,4179.9,2.39240173]
[1758654395062,0.003,4180.6,4180.5,2.39205836]
[1758654395269,0.003,4180.6,4180.5,6.49605836]
[1758654395475,0.6499,4180.6,4180.5,6.49605836]
[1758654398868,0.6499,4180.6,4180.5,4.104]
[1758654399075,0.6499,4180.6,4180.5,6.49605836]
[1758654399463,0.6499,4180.6,4180.5,2.39205836]
[1758654399689,0.6499,4180.6,4180.5,6.49005836]
[1758654400395,0.6499,4180.6,4180.0,2.39230502]
[1758654400689,0.67095423,4180.5,4180.0,4.098]
[1758654400888,0.6469,4180.4,4179.9,4.098]
[1758654401097,0.97755398,4180.3,4179.9,4.098]
[1758654401293,0.33065398,4180.3,4179.9,4.098]
[1758654401495,0.6823,4180.2,4179.3,2.39268967]
[1758654401660,6.61386449,4180.1,4179.1,4.099]
[1758654401862,6.61386449,4180.1,4179.4,2.51186955]
[1758654401863,1.19747452,4180.0,4179.4,2.51186955]
[1758654402062,0.49205423,4179.9,4179.4,6.61086794]
[1758654402264,0.51517452,4180.0,4179.8,2.3924034]
[1758654402568,0.02405423,4179.9,4179.8,2.3924034]
[1758654402892,0.6823,4180.4,4179.6,6.49155384]
[1758654402893,0.53922875,4180.3,4180.0,2.39233343]
[1758654403097,0.6823,4180.2,4180.0,2.39233343]
[1758654403293,0.14620711,4180.1,4180.0,2.39233343]
[1758654403591,0.70635423,4180.1,4180.0,2.39233343]
[1758654403798,1.06237413,4180.1,4180.0,2.39233343]
[1758654404569,0.22251244,4180.1,4180.0,2.39233343]
[1758654404898,0.35603994,4180.3,4180.2,2.39223003]
[1758654405198,0.35603994,4180.4,4180.3,2.39217281]
[1758654405365,0.24656667,4180.4,4180.3,2.39217281]
[1758654405695,0.24656667,4180.4,4180.2,0.1192]
[1758654405914,1.03833994,4180.3,4180.2,0.1192]
[1758654406091,1.19639681,4180.3,4180.2,0.1192]
[1758654406411,1.19639681,4180.3,4180.1,2.39224677]
[1758654406605,1.06239417,4180.2,4180.1,2.39224677]
[1758654407506,0.38009417,4180.2,4180.1,2.39224677]
[1758654410013,0.35603994,4180.5,4180.4,2.39211558]
[1758654410211,0.35603994,4180.5,4180.4,3.22021558]
[1758654410379,0.35603994,4180.5,4180.4,2.76131558]
[1758654411109,0.1335275,4180.5,4180.4,2.76131558]
[1758654411295,0.35650702,4180.5,4180.4,2.76131558]
[1758654411494,0.35650702,4180.5,4180.4,2.51131558]
[1758654411696,0.003,4180.6,4180.5,2.39205836]
[1758654411873,0.35975555,4180.6,4180.5,2.39205836]
[1758654412709,0.35975555,4180.6,4180.4,0.1192]
[1758654412897,0.8959843,4180.5,4179.9,3.8129]
[1758654413098,0.003,4180.6,4180.5,2.39205836]
[1758654413317,0.38402306,4180.6,4180.5,2.39205836]
[1758654413515,0.35996883,4180.6,4180.5,2.39205836]
[1758654413918,0.89919758,4180.6,4180.5,2.39205836]
[1758654414111,0.38402306,4180.6,4180.5,2.39205836]
[1758654414306,1.05744734,4180.6,4180.4,2.51130201]
[1758654414523,0.35696883,4180.5,4180.4,2.51130201]
[1758654415899,0.35714935,4180.5,4180.4,2.51130201]
[1758654416094,0.35714935,4180.5,4180.4,3.22020201]
[1758654416902,0.35714935,4180.5,4180.4,0.1192]
[1758654417128,0.35714935,4180.5,4180.4,2.51131558]
[1758654417818,0.35714935,4180.5,4180.4,0.1192]
[1758654418527,0.1192,4180.4,4180.0,0.004]
[1758654418729,1.36993455,4180.3,4180.0,0.004]
[1758654418928,1.36993455,4180.3,4180.1,2.39228726]
[1758654418929,0.87232387,4180.2,4180.1,2.39228726]
[1758654419836,0.87232387,4180.2,4180.0,0.004]
[1758654420050,0.8963781,4180.1,4180.0,0.004]
[1758654420196,0.8963781,4180.1,4180.0,2.39634449]
[1758654420396,0.87232387,4180.1,4180.0,0.004]
[1758654420710,1.74449891,4180.1,4180.0,0.004]
[1758654421029,2.38712889,4180.1,4180.0,0.004]
[1758654421431,1.06219891,4180.1,4180.0,0.004]
[1758654421752,1.74449891,4180.1,4180.0,0.004]
[1758654421948,4.60992818,4180.1,4180.0,0.004]
[1758654423057,9.26010508,4180.1,4180.0,0.004]
[1758654423204,9.66360744,4180.1,4180.0,0.004]
[1758654423403,8.37787395,4180.1,4180.0,0.004]
[1758654424507,9.66791089,4180.1,4180.0,0.004]
[1758654424702,8.37787395,4180.1,4180.0,0.004]
[1758654425437,4.51128669,4180.1,4180.0,0.004]
[1758654425635,1.06219891,4180.1,4180.0,2.39634449]
[1758654425841,1.06219891,4180.1,4180.0,0.004]
[1758654425842,1.03814468,4180.1,4180.0,0.004]
[1758654426208,4.05661113,4180.1,4180.0,0.004]
[1758654426409,7.73891113,4180.1,4180.0,0.004]
[1758654429114,8.59796896,4180.1,4180.0,0.004]
[1758654429314,9.07412766,4180.1,4180.0,0.004]
[1758654430738,13.17812766,4180.1,4180.0,0.004]
[1758654430951,14.86427237,4180.1,4180.0,0.004]
[1758654431248,14.00521454,4180.1,4180.0,0.004]
[1758654432227,4.51639458,4180.1,4180.0,0.004]
[1758654432428,0.35714935,4180.1,4180.0,0.2485]
[1758654432632,0.35714935,4180.1,4180.0,0.7063]
[1758654432832,0.35714935,4180.1,4180.0,3.09864449]
[1758654433048,0.13404383,4180.1,4180.0,3.09864449]
[1758654434320,0.13404383,4180.1,4180.0,3.6477542]
[1758654434554,0.001,4180.3,4180.2,2.39223003]
[1758654434723,0.13513577,4180.3,4180.2,2.39223003]
[1758654434923,0.13513543,4180.3,4180.2,3.09453003]
[1758654436363,0.001,4180.3,4180.2,3.21373003]
[1758654436548,0.001,4180.3,4180.2,3.83204074]
[1758654437564,0.001,4180.3,4180.2,3.85596304]
[1758654438061,1e-08,4180.6,4180.5,2.39205836]
[1758654438268,1e-08,4180.6,4180.5,6.51897894]
[1758654438450,1e-08,4180.6,4180.5,7.19735836]
[1758654438650,1e-08,4180.6,4180.5,8.78356172]
[1758654443034,1e-08,4180.6,4180.5,8.77956172]
[1758654443239,1e-08,4180.6,4180.5,10.84856172]
[1758654446886,1e-08,4180.6,4180.5,4.68056172]
[1758654447077,1e-08,4180.6,4180.5,10.84156172]
[1758654448662,0.00100001,4180.6,4180.5,13.84156172]
[1758654449389,0.00100001,4180.6,4180.5,11.77056172]
[1758654449612,0.00100001,4180.6,4180.5,13.83956172]
[1758654456099,0.00100001,4180.6,4180.5,13.83156172]
[1758654457065,0.00100001,4180.6,4180.5,13.83056172]
[1758654463303,0.00100001,4180.6,4180.5,14.62256172]
[1758654463494,0.02,4181.9,4181.4,2.3915435]
[1758654463701,0.13427526,4181.8,4181.7,2.39137193]
[1758654464027,0.13427526,4181.8,4181.7,6.48928564]
[1758654464215,0.13427526,4181.8,4181.7,2.51057193]
[1758654464417,0.34857526,4181.8,4181.7,8.65357193]
[1758654464611,0.80077526,4181.8,4181.7,8.65357193]
[1758654465009,0.80077526,4181.8,4181.7,2.51057193]
[1758654465232,1.02478409,4181.8,4181.7,6.58457193]
[1758654465396,0.80077526,4181.8,4181.7,6.58457193]
[1758654466031,0.13427526,4181.8,4181.7,6.58457193]
[1758654466444,0.13427526,4181.8,4181.7,7.71382246]
[1758654466749,0.13427526,4181.8,4181.7,7.96132246]
[1758654466956,0.02405423,4182.8,4181.7,7.96132246]
[1758654466957,0.6665,4182.4,4182.3,2.39102885]
[1758654467249,0.6665,4182.4,4182.3,6.46602885]
[1758654467950,0.04405423,4182.9,4182.3,6.46602885]
[1758654467951,0.02,4182.9,4182.8,2.39074304]
[1758654468100,0.69620302,4182.9,4182.8,6.46474304]
[1758654468767,0.91050302,4182.9,4182.8,6.46474304]
[1758654469823,0.91050302,4182.9,4182.8,2.39074304]
[1758654470164,0.91050302,4182.9,4182.0,0.69620302]
[1758654470367,0.91050302,4182.9,4180.4,2.39211491]
[1758654470368,1.75835706,4182.8,4182.1,4.074]
[1758654470571,2.04826381,4182.7,4181.5,2.068]
[1758654470723,0.64407071,4182.5,4180.5,0.004]
[1758654471055,1.42824733,4182.6,4180.5,0.004]
[1758654471056,0.76174733,4182.4,4181.9,2.39121322]
[1758654471256,0.76174733,4182.4,4180.7,5.39188732]
[1758654471257,0.89050302,4182.3,4182.0,6.46618274]
[1758654471560,1.05738198,4182.2,4179.6,0.004]
[1758654471719,0.89050302,4182.1,4180.7,6.143]
[1758654471924,0.91455725,4182.0,4181.9,2.39125756]
[1758654472120,0.91455725,4182.0,4181.9,6.46525756]
[1758654472327,0.22400302,4182.0,4181.9,6.46525756]
[1758654472672,0.53369008,4182.9,4182.4,2.39097169]
[1758654472822,0.22381769,4182.8,4182.6,2.39085736]
[1758654473024,0.02,4182.9,4182.8,2.39074304]
[1758654473225,0.2438007,4182.9,4182.8,2.39074304]
[1758654474055,0.2438007,4182.9,4182.8,6.49165047]
[1758654474256,0.02,4182.9,4182.8,6.46774304]
[1758654476728,0.02,4182.9,4182.8,8.24019736]
[1758654476956,0.02,4182.9,4182.8,8.35939736]
[1758654479440,0.02,4182.9,4182.8,10.42739736]
[1758654479835,0.02,4182.9,4182.8,3.60259736]
[1758654480040,0.02,4182.9,4182.8,9.74559736]
[1758654480240,0.02,4182.9,4182.8,9.99309736]
[1758654482373,0.02,4182.9,4182.8,3.85009736]
[1758654482578,0.02,4182.9,4182.8,8.65094304]
[1758654482779,0.02,4182.9,4182.8,2.50994304]
[1758654483017,0.02,4182.9,4182.8,6.58294304]
[1758654483523,0.02,4182.9,4182.8,2.50994304]
[1758654483664,0.15391198,4182.9,4182.8,6.58294304]
[1758654484095,0.15390993,4182.9,4182.8,6.58294304]
[1758654484280,0.15390993,4182.9,4182.8,2.50994304]
[1758654484577,0.15390993,4182.9,4182.8,6.58294304]
[1758654486211,0.82040993,4182.9,4182.8,6.58294304]
[1758654486492,0.15390993,4182.9,4182.8,6.58294304]
[1758654489494,0.15390993,4182.9,4182.8,4.1922]
[1758654489725,0.15390993,4182.9,4182.8,6.58294304]
[1758654490339,0.82040993,4182.9,4182.8,0.1192]
[1758654490642,0.82040993,4182.9,4181.6,2.39538199]
[1758654490802,0.82446416,4182.8,4181.7,2.39136943]
[1758654490980,0.80040993,4182.7,4181.6,0.004]
[1758654491182,0.15796416,4182.6,4181.6,2.39539902]
[1758654491386,2.39100383,4182.4,4181.7,3.13435875]
[1758654491705,0.78960993,4182.5,4181.8,2.39131281]
[1758654491706,1.38541713,4182.3,4181.8,2.39131281]
[1758654491905,1.38541713,4182.3,4181.8,4.073]
[1758654491906,0.80180993,4182.2,4181.8,4.073]
[1758654492108,0.80180993,4182.2,4181.6,2.39541434]
[1758654492109,0.15796416,4182.1,4181.6,0.004]
[1758654492293,0.13390993,4182.0,4181.6,0.004]
[1758654492497,0.15796416,4181.9,4181.6,2.39541031]
[1758654492728,0.80180993,4181.8,4181.6,0.004]
[1758654492930,0.13390993,4181.7,4181.6,0.004]
[1758654493084,0.80180993,4181.7,4181.6,0.004]
[1758654493511,0.13390993,4181.7,4181.6,0.004]
[1758654493712,2.39200114,4180.6,4180.1,0.024]
[1758654493917,3.0,4180.5,4180.1,0.024]
[1758654494249,2.39223003,4180.2,4180.1,0.024]
[1758654494409,7.50252484,4180.2,4180.1,0.024]
[1758654494610,7.49974923,4180.2,4180.1,0.024]
[1758654494811,9.15047422,4180.2,4180.1,0.024]
[1758654495032,10.62779878,4180.2,4180.1,0.024]
[1758654495210,9.43922519,4180.2,4180.1,0.024]
[1758654495417,15.65522519,4180.2,4180.1,0.024]
[1758654496333,12.65522519,4180.2,4180.1,0.024]
[1758654497273,15.65522519,4180.2,4180.1,0.024]